[Event "*** Titled Tuesday Blitz"]
[Site "Chess.com"]
[Date "2019.11.05"]
[Round "6"]
[White "CarlssonLudvig"]
[Black "deBaller"]
[Result "0-1"]
[WhiteElo "2474"]
[BlackElo "2351"]
[TimeControl "180+2"]
[EndTime "14:23:05 PST"]
[Termination "deBaller won by checkmate"]

1. d4 {[%clk 0:03:01.7]} 1... Nf6 {[%clk 0:03:00.4]} 2. c4 {[%clk 0:03:02.2]}
2... e6 {[%clk 0:03:01.6]} 3. Nc3 {[%clk 0:03:01.9]} 3... Bb4 {[%clk 0:03:02]}
4. Qc2 {[%clk 0:03:02.6]} 4... O-O {[%clk 0:03:00.2]} 5. Nf3 {[%clk 0:03:02.2]}
5... d6 {[%clk 0:03:00.9]} 6. Bd2 {[%clk 0:03:00.7]} 6... Nc6 {[%clk 0:03:01.3]}
7. a3 {[%clk 0:02:57.5]} 7... Bxc3 {[%clk 0:03:02.3]} 8. Bxc3 {[%clk 0:02:59.2]}
8... Qe7 {[%clk 0:03:03.8]} 9. e3 {[%clk 0:02:58.9]} 9... e5 {[%clk 0:03:04.2]}
10. dxe5 {[%clk 0:02:59.9]} 10... dxe5 {[%clk 0:03:04.6]} 11. Be2 {[%clk
0:02:59.8]} 11... a5 {[%clk 0:03:02.3]} 12. b3 {[%clk 0:02:57.8]} 12... g6
{[%clk 0:02:57.6]} 13. Qb2 {[%clk 0:02:53.1]} 13... Re8 {[%clk 0:02:55.3]} 14.
O-O {[%clk 0:02:48]} 14... Ne4 {[%clk 0:02:54.9]} 15. Rfd1 {[%clk 0:02:30.8]}
15... Nxc3 {[%clk 0:02:47.4]} 16. Qxc3 {[%clk 0:02:32.2]} 16... Bg4 {[%clk
0:02:42.6]} 17. h3 {[%clk 0:02:13.7]} 17... Bxf3 {[%clk 0:02:41.8]} 18. Bxf3
{[%clk 0:02:15.6]} 18... e4 {[%clk 0:02:43.2]} 19. Be2 {[%clk 0:02:16.4]} 19...
Rad8 {[%clk 0:02:38.2]} 20. Rd5 {[%clk 0:02:09.7]} 20... b6 {[%clk 0:02:24.8]}
21. Rdd1 {[%clk 0:01:30]} 21... Rxd1+ {[%clk 0:02:16.8]} 22. Bxd1 {[%clk
0:01:30.9]} 22... Qe5 {[%clk 0:02:08.9]} 23. Qxe5 {[%clk 0:01:28.7]} 23... Nxe5
{[%clk 0:02:10.8]} 24. Bc2 {[%clk 0:01:30.1]} 24... f5 {[%clk 0:02:11]} 25. Rd1
{[%clk 0:01:30.2]} 25... Kf7 {[%clk 0:02:08.8]} 26. Kf1 {[%clk 0:00:59.5]} 26...
Ke7 {[%clk 0:01:57.2]} 27. Rd5 {[%clk 0:00:59.7]} 27... Ke6 {[%clk 0:01:56.2]}
28. Ke2 {[%clk 0:01:00.1]} 28... c6 {[%clk 0:01:54.9]} 29. Rd1 {[%clk
0:01:00.3]} 29... Ke7 {[%clk 0:01:53.3]} 30. Rc1 {[%clk 0:00:37.7]} 30... Rd8
{[%clk 0:01:35.6]} 31. Bb1 {[%clk 0:00:27.8]} 31... c5 {[%clk 0:01:30.8]} 32.
Bc2 {[%clk 0:00:24.8]} 32... a4 {[%clk 0:01:20.7]} 33. bxa4 {[%clk 0:00:20.3]}
33... Nxc4 {[%clk 0:01:16.3]} 34. Bxe4 {[%clk 0:00:21.4]} 34... Nxa3 {[%clk
0:01:10.1]} 35. Bc6 {[%clk 0:00:08.7]} 35... Rc8 {[%clk 0:00:57.2]} 36. Bd5
{[%clk 0:00:09.2]} 36... Kd6 {[%clk 0:00:52.9]} 37. Ba2 {[%clk 0:00:09.3]} 37...
Ra8 {[%clk 0:00:51.1]} 38. Bb3 {[%clk 0:00:09.3]} 38... c4 {[%clk 0:00:39.2]}
39. Ra1 {[%clk 0:00:07.1]} 39... cxb3 {[%clk 0:00:32.9]} 40. Rxa3 {[%clk
0:00:07.9]} 40... b5 {[%clk 0:00:33.8]} 41. a5 {[%clk 0:00:04.9]} 41... Kc5
{[%clk 0:00:32.2]} 42. Rxb3 {[%clk 0:00:06.1]} 42... b4 {[%clk 0:00:33.1]} 43.
f3 {[%clk 0:00:03.4]} 43... Kc4 {[%clk 0:00:32.7]} 44. Rb2 {[%clk 0:00:04.7]}
44... b3 {[%clk 0:00:33.7]} 45. Kd2 {[%clk 0:00:05.8]} 45... Rxa5 {[%clk
0:00:33]} 46. g4 {[%clk 0:00:07.1]} 46... Ra2 {[%clk 0:00:28.2]} 47. Kc1 {[%clk
0:00:02.3]} 47... Kc3 {[%clk 0:00:29.2]} 48. Rb1 {[%clk 0:00:03.5]} 48... Rh2
{[%clk 0:00:28.8]} 49. Rxb3+ {[%clk 0:00:03]} 49... Kxb3 {[%clk 0:00:29.7]} 50.
gxf5 {[%clk 0:00:04.9]} 50... gxf5 {[%clk 0:00:30.4]} 51. Kd1 {[%clk 0:00:06.8]}
51... Rxh3 {[%clk 0:00:30.3]} 52. e4 {[%clk 0:00:08.7]} 52... Rxf3 {[%clk
0:00:29.8]} 53. exf5 {[%clk 0:00:09.3]} 53... Rxf5 {[%clk 0:00:30.5]} 54. Ke2
{[%clk 0:00:11.2]} 54... h5 {[%clk 0:00:31.8]} 55. Ke3 {[%clk 0:00:13.1]} 55...
h4 {[%clk 0:00:33.7]} 56. Ke4 {[%clk 0:00:14.6]} 56... Rf8 {[%clk 0:00:35.3]}
57. Ke3 {[%clk 0:00:15.8]} 57... h3 {[%clk 0:00:37.2]} 58. Kd3 {[%clk
0:00:17.7]} 58... h2 {[%clk 0:00:39.1]} 59. Ke4 {[%clk 0:00:19.6]} 59... h1=Q+
{[%clk 0:00:40]} 60. Ke5 {[%clk 0:00:21.5]} 60... Qe1+ {[%clk 0:00:40.5]} 61.
Kd5 {[%clk 0:00:23.4]} 61... Rd8+ {[%clk 0:00:41.1]} 62. Kc5 {[%clk 0:00:25.3]}
62... Qb4+ {[%clk 0:00:40]} 63. Kc6 {[%clk 0:00:27.2]} 63... Qd6+ {[%clk
0:00:40.5]} 64. Kb7 {[%clk 0:00:26.6]} 64... Rb8+ {[%clk 0:00:39.7]} 65. Ka7
{[%clk 0:00:27.6]} 65... Rb4 {[%clk 0:00:34.3]} 66. Ka8 {[%clk 0:00:28.1]} 66...
Qc6+ {[%clk 0:00:28.1]} 67. Ka7 {[%clk 0:00:27.9]} 67... Qa4# {[%clk 0:00:30]}
0-1

[Event "*** Titled Tuesday Blitz"]
[Site "Chess.com"]
[Date "2019.11.05"]
[Round "6"]
[White "Siemba"]
[Black "mortngabriel"]
[Result "1-0"]
[WhiteElo "2207"]
[BlackElo "2256"]
[TimeControl "180+2"]
[EndTime "14:23:08 PST"]
[Termination "Siemba won by checkmate"]

1. e4 {[%clk 0:03:01.9]} 1... c6 {[%clk 0:02:59.5]} 2. d4 {[%clk 0:03:00.9]}
2... d5 {[%clk 0:03:01.4]} 3. Nd2 {[%clk 0:02:57.6]} 3... dxe4 {[%clk
0:02:51.9]} 4. Nxe4 {[%clk 0:02:59.5]} 4... Bf5 {[%clk 0:02:53.1]} 5. Ng3 {[%clk
0:02:57.3]} 5... Bg6 {[%clk 0:02:54]} 6. h4 {[%clk 0:02:57.5]} 6... h6 {[%clk
0:02:55.5]} 7. Nf3 {[%clk 0:02:56.6]} 7... Nd7 {[%clk 0:02:55.6]} 8. h5 {[%clk
0:02:56.6]} 8... Bh7 {[%clk 0:02:57.2]} 9. Bd3 {[%clk 0:02:58.2]} 9... Bxd3
{[%clk 0:02:58.7]} 10. Qxd3 {[%clk 0:03:00.1]} 10... e6 {[%clk 0:02:57.6]} 11.
Bd2 {[%clk 0:03:01.2]} 11... Ngf6 {[%clk 0:02:55.3]} 12. O-O-O {[%clk
0:02:58.1]} 12... Be7 {[%clk 0:02:52.7]} 13. Kb1 {[%clk 0:02:56.1]} 13... O-O
{[%clk 0:02:48.8]} 14. Ne4 {[%clk 0:02:44.1]} 14... c5 {[%clk 0:02:31.9]} 15.
Bc3 {[%clk 0:02:39.5]} 15... Nxe4 {[%clk 0:02:17.5]} 16. Qxe4 {[%clk 0:02:32.7]}
16... Nf6 {[%clk 0:02:19.4]} 17. Qd3 {[%clk 0:02:30.7]} 17... Nd5 {[%clk
0:01:34.3]} 18. Bd2 {[%clk 0:02:14]} 18... cxd4 {[%clk 0:01:25]} 19. Nxd4 {[%clk
0:02:12.9]} 19... Rc8 {[%clk 0:01:03.7]} 20. Bc1 {[%clk 0:01:28.9]} 20... Bf6
{[%clk 0:00:57]} 21. Rhe1 {[%clk 0:01:09]} 21... Qb6 {[%clk 0:00:34.8]} 22. Nb3
{[%clk 0:00:58.4]} 22... Rfd8 {[%clk 0:00:30.8]} 23. Qf3 {[%clk 0:00:37]} 23...
a5 {[%clk 0:00:30.2]} 24. Be3 {[%clk 0:00:20.5]} 24... Nxe3 {[%clk 0:00:26.3]}
25. Rxd8+ {[%clk 0:00:18.5]} 25... Qxd8 {[%clk 0:00:17.3]} 26. Qxe3 {[%clk
0:00:18.9]} 26... a4 {[%clk 0:00:18.4]} 27. Nc1 {[%clk 0:00:16.5]} 27... Qc7
{[%clk 0:00:16.1]} 28. c3 {[%clk 0:00:16.2]} 28... a3 {[%clk 0:00:16.1]} 29. Ne2
{[%clk 0:00:12.5]} 29... axb2 {[%clk 0:00:15.3]} 30. Kxb2 {[%clk 0:00:14.4]}
30... Qc4 {[%clk 0:00:15.1]} 31. Rd1 {[%clk 0:00:12.9]} 31... b5 {[%clk
0:00:11.5]} 32. Qd3 {[%clk 0:00:13.1]} 32... Qa4 {[%clk 0:00:11.1]} 33. Qc2
{[%clk 0:00:11.2]} 33... Qa5 {[%clk 0:00:07.4]} 34. a3 {[%clk 0:00:07.1]} 34...
b4 {[%clk 0:00:07.5]} 35. axb4 {[%clk 0:00:08.2]} 35... Qxb4+ {[%clk 0:00:08.9]}
36. Qb3 {[%clk 0:00:09.3]} 36... Qe4 {[%clk 0:00:09.6]} 37. Rd2 {[%clk
0:00:08.3]} 37... Qxg2 {[%clk 0:00:09.6]} 38. Nd4 {[%clk 0:00:07]} 38... Qg5
{[%clk 0:00:06.4]} 39. Rc2 {[%clk 0:00:04]} 39... Qxh5 {[%clk 0:00:04.3]} 40.
Qb7 {[%clk 0:00:04.6]} 40... Qc5 {[%clk 0:00:04.4]} 41. Nb3 {[%clk 0:00:03.9]}
41... Bxc3+ {[%clk 0:00:05.1]} 42. Kb1 {[%clk 0:00:05.3]} 42... Qc4 {[%clk
0:00:05.9]} 43. Na5 {[%clk 0:00:04]} 43... Qf1+ {[%clk 0:00:06.8]} 44. Ka2
{[%clk 0:00:05.1]} 44... Qa1+ {[%clk 0:00:07.4]} 45. Kb3 {[%clk 0:00:05.9]}
45... Qxa5 {[%clk 0:00:09.3]} 46. Qxc8+ {[%clk 0:00:07]} 46... Kh7 {[%clk
0:00:09.6]} 47. Qxc3 {[%clk 0:00:08.9]} 47... Qb5+ {[%clk 0:00:09.4]} 48. Qb4
{[%clk 0:00:09.9]} 48... Qd3+ {[%clk 0:00:09.3]} 49. Qc3 {[%clk 0:00:11.1]}
49... Qb5+ {[%clk 0:00:10.1]} 50. Ka2 {[%clk 0:00:12.7]} 50... Qa4+ {[%clk
0:00:10.8]} 51. Kb1 {[%clk 0:00:13.9]} 51... Qb5+ {[%clk 0:00:12.3]} 52. Kc1
{[%clk 0:00:15.2]} 52... Qf1+ {[%clk 0:00:13.2]} 53. Kd2 {[%clk 0:00:15.2]}
53... Qxf2+ {[%clk 0:00:14.2]} 54. Kd1 {[%clk 0:00:15.3]} 54... Qf1+ {[%clk
0:00:14.1]} 55. Qe1 {[%clk 0:00:16.5]} 55... Qxe1+ {[%clk 0:00:15.6]} 56. Kxe1
{[%clk 0:00:17.6]} 56... g5 {[%clk 0:00:15.7]} 57. Kf2 {[%clk 0:00:19.5]} 57...
Kg6 {[%clk 0:00:16.8]} 58. Rc3 {[%clk 0:00:19.5]} 58... h5 {[%clk 0:00:18.1]}
59. Ra3 {[%clk 0:00:21.4]} 59... f6 {[%clk 0:00:17.7]} 60. Ra6 {[%clk
0:00:21.3]} 60... e5 {[%clk 0:00:18.5]} 61. Kf3 {[%clk 0:00:21]} 61... g4+
{[%clk 0:00:18.7]} 62. Ke4 {[%clk 0:00:22.3]} 62... h4 {[%clk 0:00:16.9]} 63.
Ra8 {[%clk 0:00:23.7]} 63... h3 {[%clk 0:00:14.9]} 64. Rg8+ {[%clk 0:00:23]}
64... Kh5 {[%clk 0:00:16.3]} 65. Kf5 {[%clk 0:00:19.6]} 65... h2 {[%clk
0:00:06.7]} 66. Rh8# {[%clk 0:00:20.4]} 1-0

[Event "*** Titled Tuesday Blitz"]
[Site "Chess.com"]
[Date "2019.11.05"]
[Round "6"]
[White "GM_dmitrij"]
[Black "ChessQueen"]
[Result "1-0"]
[WhiteElo "2926"]
[BlackElo "2676"]
[TimeControl "180+2"]
[EndTime "14:23:17 PST"]
[Termination "GM_dmitrij won by resignation"]

1. e4 {[%clk 0:03:01.9]} 1... e5 {[%clk 0:02:57.8]} 2. Nf3 {[%clk 0:03:03.1]}
2... Nf6 {[%clk 0:02:59.1]} 3. Nxe5 {[%clk 0:02:59.6]} 3... d6 {[%clk
0:03:00.6]} 4. Nd3 {[%clk 0:02:52.9]} 4... Nxe4 {[%clk 0:03:00.6]} 5. Qe2 {[%clk
0:02:54.4]} 5... Qe7 {[%clk 0:03:01.5]} 6. Nf4 {[%clk 0:02:51.3]} 6... Nf6
{[%clk 0:03:02.3]} 7. Nc3 {[%clk 0:02:44.2]} 7... c6 {[%clk 0:02:52.5]} 8. d4
{[%clk 0:02:44.3]} 8... Qxe2+ {[%clk 0:02:52.1]} 9. Bxe2 {[%clk 0:02:46.2]} 9...
d5 {[%clk 0:02:48.7]} 10. Nd3 {[%clk 0:02:37.4]} 10... Bd6 {[%clk 0:02:49.6]}
11. Bg5 {[%clk 0:02:34.7]} 11... Nbd7 {[%clk 0:02:47.7]} 12. f3 {[%clk
0:02:27.7]} 12... O-O {[%clk 0:02:41.4]} 13. Kf2 {[%clk 0:02:28.6]} 13... h6
{[%clk 0:02:39.4]} 14. Bf4 {[%clk 0:02:29.3]} 14... Bxf4 {[%clk 0:02:37.6]} 15.
Nxf4 {[%clk 0:02:31.2]} 15... Re8 {[%clk 0:02:36.2]} 16. h4 {[%clk 0:02:29.6]}
16... Nb6 {[%clk 0:02:33.4]} 17. g4 {[%clk 0:02:16.3]} 17... Nh7 {[%clk
0:02:13.1]} 18. Bd3 {[%clk 0:02:11.8]} 18... Nc4 {[%clk 0:02:11.8]} 19. Bxc4
{[%clk 0:01:55.7]} 19... dxc4 {[%clk 0:02:12.6]} 20. d5 {[%clk 0:01:57.6]} 20...
cxd5 {[%clk 0:02:02.5]} 21. Nfxd5 {[%clk 0:01:55.9]} 21... Rb8 {[%clk
0:01:57.5]} 22. Rad1 {[%clk 0:01:46.4]} 22... Be6 {[%clk 0:01:42.6]} 23. a4
{[%clk 0:01:41.8]} 23... Nf8 {[%clk 0:01:37]} 24. Ne3 {[%clk 0:01:28.1]} 24...
Red8 {[%clk 0:01:19.4]} 25. Nb5 {[%clk 0:01:20]} 25... a6 {[%clk 0:01:16.4]} 26.
Nd4 {[%clk 0:01:20.6]} 26... Rbc8 {[%clk 0:01:03.5]} 27. c3 {[%clk 0:01:18.3]}
27... Bd7 {[%clk 0:00:59.3]} 28. a5 {[%clk 0:01:09.8]} 28... Rc5 {[%clk
0:01:00.4]} 29. Ra1 {[%clk 0:01:10.5]} 29... Re8 {[%clk 0:01:00]} 30. Rhd1
{[%clk 0:01:05.2]} 30... g6 {[%clk 0:01:00.2]} 31. Ndc2 {[%clk 0:00:50.8]} 31...
Kg7 {[%clk 0:00:59.3]} 32. Rd5 {[%clk 0:00:44]} 32... Rxd5 {[%clk 0:00:45.5]}
33. Nxd5 {[%clk 0:00:45.9]} 33... Re5 {[%clk 0:00:41.1]} 34. Nce3 {[%clk
0:00:36.9]} 34... Be6 {[%clk 0:00:37.2]} 35. Nb6 {[%clk 0:00:36.9]} 35... Rc5
{[%clk 0:00:34.4]} 36. Ra4 {[%clk 0:00:37.7]} 36... Nd7 {[%clk 0:00:23]} 37.
Nexc4 {[%clk 0:00:37.4]} 37... Nxb6 {[%clk 0:00:16.1]} 38. Nxb6 {[%clk
0:00:39.3]} 38... Rb5 {[%clk 0:00:16.9]} 39. b4 {[%clk 0:00:38.2]} 39... h5
{[%clk 0:00:17]} 40. g5 {[%clk 0:00:29.9]} 40... f6 {[%clk 0:00:18.4]} 41. f4
{[%clk 0:00:23.4]} 41... fxg5 {[%clk 0:00:17.8]} 42. hxg5 {[%clk 0:00:25.3]}
42... h4 {[%clk 0:00:18.1]} 43. Ra1 {[%clk 0:00:24.6]} 43... h3 {[%clk
0:00:19.4]} 44. Kg3 {[%clk 0:00:25.5]} 44... Rf5 {[%clk 0:00:19.2]} 45. Re1
{[%clk 0:00:26.4]} 45... Kf7 {[%clk 0:00:20.3]} 46. Re2 {[%clk 0:00:21.7]} 46...
Rb5 {[%clk 0:00:20]} 47. Rd2 {[%clk 0:00:15.8]} 47... Ke7 {[%clk 0:00:19.8]} 48.
Rd4 {[%clk 0:00:14.5]} 48... Rf5 {[%clk 0:00:18.6]} 49. c4 {[%clk 0:00:15.7]}
49... Rf8 {[%clk 0:00:19.6]} 50. Rd2 {[%clk 0:00:17]} 50... Rh8 {[%clk
0:00:18.9]} 51. Re2 {[%clk 0:00:18.1]} 51... Kf7 {[%clk 0:00:17.4]} 52. Kh2
{[%clk 0:00:16.2]} 52... Rd8 {[%clk 0:00:18]} 53. Nd5 {[%clk 0:00:13.2]} 53...
Bxd5 {[%clk 0:00:18.5]} 54. Rd2 {[%clk 0:00:14.9]} 54... Rc8 {[%clk 0:00:05.9]}
55. cxd5 {[%clk 0:00:13]} 55... Rc4 {[%clk 0:00:07.1]} 56. d6 {[%clk 0:00:14.3]}
56... Ke8 {[%clk 0:00:08.5]} 57. f5 {[%clk 0:00:14.9]} 57... gxf5 {[%clk
0:00:08.9]} 58. Rd5 {[%clk 0:00:16]} 58... Kd7 {[%clk 0:00:07.8]} 59. Rxf5
{[%clk 0:00:15.9]} 59... Kxd6 {[%clk 0:00:07]} 60. Kxh3 {[%clk 0:00:17.2]} 60...
Rxb4 {[%clk 0:00:06.8]} 61. g6 {[%clk 0:00:18.7]} 61... Rb1 {[%clk 0:00:07.8]}
62. Rg5 {[%clk 0:00:14.3]} 62... Rh1+ {[%clk 0:00:07.9]} 63. Kg4 {[%clk
0:00:15.3]} 63... Rh8 {[%clk 0:00:09.8]} 64. Kf5 {[%clk 0:00:14.5]} 64... Rg8
{[%clk 0:00:11.7]} 65. Kf6 {[%clk 0:00:15.5]} 65... Rf8+ {[%clk 0:00:12.7]} 66.
Kg7 {[%clk 0:00:16.9]} 66... Rf1 {[%clk 0:00:11.8]} 67. Kh7 {[%clk 0:00:18.4]}
67... Rh1+ {[%clk 0:00:12]} 68. Kg8 {[%clk 0:00:19.6]} 68... Ke7 {[%clk
0:00:11.1]} 69. Rf5 {[%clk 0:00:19.2]} 1-0

[Event "*** Titled Tuesday Blitz"]
[Site "Chess.com"]
[Date "2019.11.05"]
[Round "6"]
[White "KL31"]
[Black "Godzillator"]
[Result "1/2-1/2"]
[WhiteElo "2493"]
[BlackElo "2303"]
[TimeControl "180+2"]
[EndTime "14:23:17 PST"]
[Termination "Game drawn - insufficient material"]

1. d4 {[%clk 0:02:59.8]} 1... d5 {[%clk 0:03:00.5]} 2. Nf3 {[%clk 0:03:00.8]}
2... Nf6 {[%clk 0:03:00.8]} 3. Bf4 {[%clk 0:03:02.1]} 3... c5 {[%clk 0:03:01.5]}
4. e3 {[%clk 0:03:03.3]} 4... cxd4 {[%clk 0:03:02.7]} 5. exd4 {[%clk 0:03:05.2]}
5... Nc6 {[%clk 0:03:04.1]} 6. c3 {[%clk 0:03:05.7]} 6... Bg4 {[%clk 0:03:05.1]}
7. Qb3 {[%clk 0:02:55.7]} 7... Qc8 {[%clk 0:03:05.7]} 8. Nbd2 {[%clk 0:02:53.1]}
8... e6 {[%clk 0:03:06.2]} 9. Bd3 {[%clk 0:02:51.5]} 9... Be7 {[%clk 0:03:07.3]}
10. O-O {[%clk 0:02:51.4]} 10... Bh5 {[%clk 0:03:08.5]} 11. Rfe1 {[%clk
0:02:46.6]} 11... O-O {[%clk 0:03:08.4]} 12. Rac1 {[%clk 0:02:34.9]} 12... Bg6
{[%clk 0:03:08.2]} 13. Bxg6 {[%clk 0:02:35.4]} 13... hxg6 {[%clk 0:03:08.9]} 14.
c4 {[%clk 0:02:29]} 14... Na5 {[%clk 0:03:05.8]} 15. Qd3 {[%clk 0:02:14.2]}
15... dxc4 {[%clk 0:03:06.2]} 16. Nxc4 {[%clk 0:02:16.1]} 16... Nxc4 {[%clk
0:03:06.5]} 17. Rxc4 {[%clk 0:02:18]} 17... Qd8 {[%clk 0:03:04.6]} 18. Bc7
{[%clk 0:01:57.4]} 18... Qe8 {[%clk 0:03:02.8]} 19. Be5 {[%clk 0:01:41]} 19...
Nd5 {[%clk 0:03:03.2]} 20. Rec1 {[%clk 0:01:32.2]} 20... Qd7 {[%clk 0:03:03]}
21. h4 {[%clk 0:01:18.7]} 21... Rfc8 {[%clk 0:03:03.5]} 22. Qc2 {[%clk
0:01:07.2]} 22... Nb6 {[%clk 0:02:59.6]} 23. Rc7 {[%clk 0:01:04.4]} 23... Rxc7
{[%clk 0:02:53.3]} 24. Qxc7 {[%clk 0:01:06.3]} 24... Bd8 {[%clk 0:02:48.6]} 25.
Qxd7 {[%clk 0:01:01.5]} 25... Nxd7 {[%clk 0:02:49.6]} 26. Bd6 {[%clk 0:00:52.4]}
26... Nb6 {[%clk 0:02:49.7]} 27. g3 {[%clk 0:00:45.5]} 27... Rc8 {[%clk
0:02:50.3]} 28. Rxc8 {[%clk 0:00:41.3]} 28... Nxc8 {[%clk 0:02:51.2]} 29. Bb8
{[%clk 0:00:42.7]} 29... Bb6 {[%clk 0:02:48.4]} 30. Kf1 {[%clk 0:00:39.9]} 30...
Ne7 {[%clk 0:02:48.2]} 31. Bd6 {[%clk 0:00:33.6]} 31... Nc6 {[%clk 0:02:45.3]}
32. Bc5 {[%clk 0:00:34.9]} 32... Bc7 {[%clk 0:02:34.7]} 33. Ke2 {[%clk
0:00:30.5]} 33... b6 {[%clk 0:02:34.6]} 34. Ba3 {[%clk 0:00:30.8]} 34... f6
{[%clk 0:02:29.6]} 35. Kd3 {[%clk 0:00:31.4]} 35... Na5 {[%clk 0:02:29.4]} 36.
b4 {[%clk 0:00:25.8]} 36... Nb7 {[%clk 0:02:28.2]} 37. b5 {[%clk 0:00:23.5]}
37... Bd6 {[%clk 0:02:26.8]} 38. Bb2 {[%clk 0:00:19.1]} 38... Kf7 {[%clk
0:02:25.7]} 39. a4 {[%clk 0:00:16.8]} 39... Bb4 {[%clk 0:02:21.7]} 40. Kc4
{[%clk 0:00:16.3]} 40... Be7 {[%clk 0:02:21.8]} 41. g4 {[%clk 0:00:13.3]} 41...
Nd6+ {[%clk 0:02:22.6]} 42. Kd3 {[%clk 0:00:14.8]} 42... Ke8 {[%clk 0:02:19.5]}
43. Ba3 {[%clk 0:00:15.8]} 43... Nb7 {[%clk 0:02:10.5]} 44. Bxe7 {[%clk
0:00:16.4]} 44... Kxe7 {[%clk 0:02:11.8]} 45. Nd2 {[%clk 0:00:15.2]} 45... Nd6
{[%clk 0:02:12]} 46. f4 {[%clk 0:00:12.4]} 46... Kd7 {[%clk 0:02:10.6]} 47. Ke3
{[%clk 0:00:11.1]} 47... f5 {[%clk 0:02:08.5]} 48. g5 {[%clk 0:00:07.9]} 48...
Kc7 {[%clk 0:02:08.4]} 49. d5 {[%clk 0:00:04.7]} 49... Kd7 {[%clk 0:02:07.5]}
50. dxe6+ {[%clk 0:00:04.6]} 50... Kxe6 {[%clk 0:02:08.5]} 51. Kd4 {[%clk
0:00:06.3]} 51... Nb7 {[%clk 0:02:07.1]} 52. Nf3 {[%clk 0:00:04.1]} 52... Nc5
{[%clk 0:02:07.6]} 53. Ne5 {[%clk 0:00:05.6]} 53... Nxa4 {[%clk 0:02:04.1]} 54.
Nxg6 {[%clk 0:00:07.2]} 54... Nc5 {[%clk 0:02:04.8]} 55. h5 {[%clk 0:00:08.5]}
55... Nb3+ {[%clk 0:02:03.7]} 56. Kc3 {[%clk 0:00:07.8]} 56... Nc5 {[%clk
0:02:04.7]} 57. Kd4 {[%clk 0:00:09.2]} 57... Ne4 {[%clk 0:02:05.8]} 58. h6
{[%clk 0:00:08.5]} 58... gxh6 {[%clk 0:02:06.5]} 59. gxh6 {[%clk 0:00:10.4]}
59... Nf6 {[%clk 0:02:07.5]} 60. Nf8+ {[%clk 0:00:08.3]} 60... Kf7 {[%clk
0:02:08.7]} 61. Ke5 {[%clk 0:00:09.3]} 61... Ng4+ {[%clk 0:02:04.1]} 62. Kxf5
{[%clk 0:00:10.6]} 62... Nxh6+ {[%clk 0:02:05.1]} 63. Kg5 {[%clk 0:00:11.9]}
63... Ng8 {[%clk 0:02:03.3]} 64. Ng6 {[%clk 0:00:11.5]} 64... Ke6 {[%clk
0:02:01.7]} 65. f5+ {[%clk 0:00:12.1]} 65... Kd5 {[%clk 0:02:02.7]} 66. Kf4
{[%clk 0:00:04.3]} 66... Kc5 {[%clk 0:02:03.2]} 67. Ke5 {[%clk 0:00:05.7]} 67...
Kxb5 {[%clk 0:02:02.6]} 68. Ke6 {[%clk 0:00:07.2]} 68... a5 {[%clk 0:02:02.8]}
69. Ne7 {[%clk 0:00:06]} 69... Nh6 {[%clk 0:02:03.4]} 70. f6 {[%clk 0:00:07.5]}
70... a4 {[%clk 0:02:04.5]} 71. Nf5 {[%clk 0:00:08.9]} 71... a3 {[%clk
0:01:54.9]} 72. Nxh6 {[%clk 0:00:09.4]} 72... a2 {[%clk 0:01:56.2]} 73. f7
{[%clk 0:00:11.3]} 73... a1=Q {[%clk 0:01:57.4]} 74. f8=Q {[%clk 0:00:13.2]}
74... Qe1+ {[%clk 0:01:53.2]} 75. Kf6 {[%clk 0:00:13]} 75... Qf2+ {[%clk
0:01:51.8]} 76. Nf5 {[%clk 0:00:14.2]} 76... Qb2+ {[%clk 0:01:51.5]} 77. Ke6
{[%clk 0:00:13.9]} 77... Qb3+ {[%clk 0:01:52.5]} 78. Ke5 {[%clk 0:00:12.1]}
78... Qc3+ {[%clk 0:01:51.8]} 79. Ke4 {[%clk 0:00:11.5]} 79... Qc4+ {[%clk
0:01:51.9]} 80. Nd4+ {[%clk 0:00:12.1]} 80... Ka4 {[%clk 0:01:49.9]} 81. Qa8+
{[%clk 0:00:12.3]} 81... Kb4 {[%clk 0:01:50.7]} 82. Qf8+ {[%clk 0:00:12.9]}
82... Ka4 {[%clk 0:01:46.2]} 83. Ke3 {[%clk 0:00:11.3]} 83... Qc3+ {[%clk
0:01:45.6]} 84. Ke4 {[%clk 0:00:12.2]} 84... Qb4 {[%clk 0:01:46.1]} 85. Qe8+
{[%clk 0:00:11.5]} 85... b5 {[%clk 0:01:45]} 86. Kd3 {[%clk 0:00:10.1]} 86...
Qc4+ {[%clk 0:01:44.6]} 87. Ke3 {[%clk 0:00:09.2]} 87... Kb4 {[%clk 0:01:45.4]}
88. Qxb5+ {[%clk 0:00:07.8]} 88... Qxb5 {[%clk 0:01:45.6]} 89. Nxb5 {[%clk
0:00:09.7]} 1/2-1/2